[Event "FIDE WCCC G10 2018"]
[Site "Santiago de Compostela"]
[Date "2018.11.11"]
[Round "7"]
[White "Chekhani, Anna"]
[Black "Shvedova, Alexandra"]
[Result "0-1"]
[ECO "A01"]
[WhiteElo "1288"]
[BlackElo "1782"]
[Annotator "NA RC"]
[PlyCount "132"]
[EventDate "2018.11.04"]
[EventType "swiss"]
[EventCountry "ESP"]
[SourceTitle "playchess.com"]
[Source "ChessBase"]
[SourceQuality "1"]
[TimeControl "40/5400+30:1800+30"]

1. b3 {[%emt 0:00:00]} d5 {[%emt 0:00:00]} 2. Bb2 {[%emt 0:00:00]} Nf6 {[%emt 0:00:00]} 3. e3 {[%emt 0:00:41]} g6 {[%emt 0:00:24]} 4. Nf3 {[%emt 0:04:32]} Bg7 {[%emt 0:01:00]} 5. Be2 {[%emt 0:00:27]} O-O {[%emt 0:00:10]} 6. O-O {[%emt 0:01:10]} c5 {[%emt 0:00:17]} 7. c4 {[%emt 0:03:57]} d4 {[%emt 0:01:18]} 8. d3 {[%emt 0:11:33]} Nc6 {[%emt 0:04:17]} 9. h3 {[%emt 0:08:22]} e5 {[%emt 0:03:12]} 10. Re1 {[%emt 0:06:58]} Nd7 {[%emt 0:06:37]} 11. exd4 {[%emt 0:09:26]} cxd4 {[%emt 0:01:35]} 12. Na3 {[%emt 0:07:12]} f5 {[%emt 0:07:41]} 13. Bf1 {[%emt 0:03:32]} Re8 {[%emt 0:03:49]} 14. Nc2 {[%emt 0:03:58]} a5 {[%emt 0:14:35]} 15. a3 {[%emt 0:07:15]} Nc5 {[%emt 0:12:21]} 16. b4 {[%emt 0:09:39]} Na4 {[%emt 0:02:29]} 17. Rb1 {[%emt 0:02:15]} Nxb2 {[%emt 0:00:20]} 18. Rxb2 {[%emt 0:00:05]} e4 {[%emt 0:01:10]} 19. Qe2 {[%emt 0:07:46]} Bd7 {[%emt 0:02:19]} 20. Nd2 {[%emt 0:02:17]} Ne5 {[%emt 0:14:04]} 21. Qd1 {[%emt 0:03:15]} Nxd3 {[%emt 0:02:15]} 22. Bxd3 {[%emt 0:00:15]} exd3 {[%emt 0:00:04]} 23. Rxe8+ {[%emt 0:01:18]} Qxe8 {[%emt 0:00:10]} 24. Ne1 {[%emt 0:00:24]} axb4 {[%emt 0:02:33]} 25. axb4 {[%emt 0:00:31]} Qe2 {[%emt 0:01:50]} 26. Qb1 {[%emt 0:01:07]} Re8 {[%emt 0:03:11]} 27. Ndf3 {[%emt 0:01:31]} d2 {[%emt 0:00:43]} 28. Rxd2 {[%emt 0:00:34]} Qxc4 {[%emt 0:00:13]} 29. Nc2 {[%emt 0:03:15]} Re4 {[%emt 0:04:54]} 30. Qd1 {[%emt 0:00:19]} Ba4 {[%emt 0:01:09]} 31. Ng5 {[%emt 0:01:21]} Re8 {[%emt 0:00:26]} 32. Qb1 {[%emt 0:00:31]} Qc3 {[%emt 0:01:19]} 33. Nf3 Bh6 {[%emt 0:00:41]} 34. Qa2+ {[%emt 0:01:01]} Bb3 {[%emt 0:00:09]} 35. Qb1 {[%emt 0:00:29]} Bxd2 {[%emt 0:00:09]} 36. Nxd2 {[%emt 0:00:19]} Bxc2 {[%emt 0:00:12]} 37. Qa2+ {[%emt 0:00:29]} Kh8 {[%emt 0:00:12]} 38. Qf7 {[%emt 0:00:36]} Qc6 {[%emt 0:00:24]} 39. Nf3 {[%emt 0:00:30]} Qe6 {[%emt 0:00:46]} 40. Qc7 {[%emt 0:00:00]} d3 {[%emt 0:00:00]} 41. g3 {[%emt 0:09:04]} Qc6 {[%emt 0:09:39]} 42. Qf7 {[%emt 0:01:04]} Qe6 {[%emt 0:05:45]} 43. Qxb7 {[%emt 0:04:28]} d2 {[%emt 0:02:38]} 44. Nxd2 {[%emt 0:01:09]} Qe1+ {[%emt 0:00:05]} 45. Nf1 {[%emt 0:00:08]} Bd3 {[%emt 0:00:07]} 46. Qg2 {[%emt 0:00:18]} Qxf1+ {[%emt 0:00:13]} 47. Qxf1 {[%emt 0:00:05]} Bxf1 {[%emt 0:00:03]} 48. Kxf1 {[%emt 0:00:05]} Rb8 {[%emt 0:00:04]} 49. Kg2 {[%emt 0:00:28]} Rxb4 {[%emt 0:00:04]} 50. Kf3 {[%emt 0:00:06]} Kg7 {[%emt 0:00:27]} 51. Kg2 {[%emt 0:00:14]} Kf6 {[%emt 0:00:08]} 52. Kf3 {[%emt 0:00:03]} f4 {[%emt 0:00:22]} 53. gxf4 {[%emt 0:00:35]} Kf5 {[%emt 0:00:04]} 54. Kg3 Rxf4 {[%emt 0:00:17]} 55. f3 {[%emt 0:00:12]} h5 {[%emt 0:00:14]} 56. Kg2 {[%emt 0:00:04]} h4 {[%emt 0:00:25]} 57. Kf2 {[%emt 0:00:04]} Ke5 {[%emt 0:00:04]} 58. Ke2 {[%emt 0:00:42]} Kd4 {[%emt 0:00:05]} 59. Kf2 {[%emt 0:00:07]} Kd3 {[%emt 0:00:04]} 60. Kg2 {[%emt 0:00:58]} Ke3 {[%emt 0:00:06]} 61. Kg1 {[%emt 0:00:16]} Rxf3 {[%emt 0:00:12]} 62. Kg2 {[%emt 0:00:20]} Ke2 {[%emt 0:00:21]} 63. Kg1 {[%emt 0:00:31]} Rg3+ {[%emt 0:00:10]} 64. Kh1 {[%emt 0:00:06]} Kf1 {[%emt 0:00:09]} 65. Kh2 {[%emt 0:00:04]} Kf2 {[%emt 0:00:04]} 66. Kh1 {[%emt 0:00:07]} Rxh3# {[%emt 0:00:04]} 0-1

[Event "FIDE WCCC G10 2018"]
[Site "Santiago de Compostela"]
[Date "2018.11.11"]
[Round "7"]
[White "Ho, Ngoc Vy"]
[Black "Khamdamova, Afruza"]
[Result "1-0"]
[ECO "E06"]
[WhiteElo "1275"]
[BlackElo "1691"]
[Annotator "NA RC"]
[PlyCount "95"]
[EventDate "2018.11.04"]
[EventType "swiss"]
[EventCountry "ESP"]
[SourceTitle "playchess.com"]
[Source "ChessBase"]
[SourceQuality "1"]
[TimeControl "40/5400+30:1800+30"]

1. d4 {[%emt 0:00:00]} Nf6 {[%emt 0:00:00]} 2. c4 {[%emt 0:00:57]} e6 {[%emt 0:00:00]} 3. g3 {[%emt 0:00:55]} d5 {[%emt 0:00:00]} 4. Nf3 {[%emt 0:01:09]} Be7 {[%emt 0:00:00]} 5. Bg2 {[%emt 0:01:09]} O-O {[%emt 0:05:56]} 6. O-O {[%emt 0:01:50]} c6 {[%emt 0:00:33]} 7. Nc3 {[%emt 0:02:33]} b6 {[%emt 0:01:28]} 8. Qd3 {[%emt 0:06:39]} dxc4 {[%emt 0:18:27]} 9. Qxc4 {[%emt 0:03:04]} b5 {[%emt 0:00:20]} 10. Qd3 {[%emt 0:02:30]} b4 {[%emt 0:00:21]} 11. Ne4 {[%emt 0:00:50]} Ba6 {[%emt 0:00:21]} 12. Nxf6+ {[%emt 0:01:51]} Bxf6 {[%emt 0:00:07]} 13. Qc2 {[%emt 0:00:18]} Qb6 {[%emt 0:07:07]} 14. Rd1 {[%emt 0:01:50]} Nd7 {[%emt 0:06:22]} 15. Bf4 {[%emt 0:01:43]} Rac8 {[%emt 0:01:41]} 16. e4 {[%emt 0:04:15]} c5 {[%emt 0:09:08]} 17. d5 {[%emt 0:04:13]} e5 {[%emt 0:03:08]} 18. Be3 {[%emt 0:02:03]} Qb7 {[%emt 0:04:20]} 19. Rac1 {[%emt 0:04:31]} c4 {[%emt 0:01:00]} 20. Bh3 {[%emt 0:02:01]} Rfd8 {[%emt 0:01:18]} 21. Kg2 {[%emt 0:03:49]} Bb5 {[%emt 0:04:25]} 22. Qd2 {[%emt 0:14:07]} Ba4 {[%emt 0:03:31]} 23. Re1 {[%emt 0:08:10]} h6 {[%emt 0:00:32]} 24. Bf5 {[%emt 0:09:25]} Qb8 {[%emt 0:10:49]} 25. d6 {[%emt 0:14:14]} Rc6 {[%emt 0:01:23]} 26. Qd5 {[%emt 0:03:58]} Qb5 {[%emt 0:06:34]} 27. Bxa7 {[%emt 0:01:52]} Ra6 {[%emt 0:02:49]} 28. Bxd7 {[%emt 0:01:06]} Qxd5 {[%emt 0:03:20]} 29. exd5 {[%emt 0:00:08]} Bxd7 {[%emt 0:00:08]} 30. Bc5 {[%emt 0:00:13]} b3 {[%emt 0:02:06]} 31. a3 e4 {[%emt 0:00:57]} 32. Rxe4 {[%emt 0:02:49]} Bxb2 {[%emt 0:00:07]} 33. Rcxc4 {[%emt 0:00:07]} Bxa3 {[%emt 0:00:21]} 34. Bxa3 Rxa3 {[%emt 0:00:06]} 35. Rb4 {[%emt 0:00:21]} Bf5 {[%emt 0:03:34]} 36. Red4 {[%emt 0:00:14]} Bc2 {[%emt 0:00:44]} 37. Ne5 {[%emt 0:00:32]} Ra5 {[%emt 0:01:11]} 38. Nc6 {[%emt 0:00:11]} Raa8 {[%emt 0:00:25]} 39. Nxd8 {[%emt 0:00:07]} Rxd8 {[%emt 0:00:03]} 40. Rb6 {[%emt 0:00:00]} f6 {[%emt 0:00:00]} 41. Rc4 {[%emt 0:01:48]} Bd3 {[%emt 0:06:11]} 42. Rcb4 {[%emt 0:01:15]} Kf7 {[%emt 0:01:28]} 43. Kf3 {[%emt 0:00:37]} f5 {[%emt 0:01:13]} 44. Ke3 {[%emt 0:00:30]} Bc2 {[%emt 0:01:14]} 45. Rc4 {[%emt 0:00:26]} Be4 {[%emt 0:00:45]} 46. Rc7+ {[%emt 0:01:57]} Kf8 {[%emt 0:00:39]} 47. Kd4 {[%emt 0:00:22]} Bc2 {[%emt 0:00:57]} 48. Rbb7 {[%emt 0:00:57]} 1-0

[Event "FIDE WCCC G10 2018"]
[Site "Santiago de Compostela"]
[Date "2018.11.11"]
[Round "7"]
[White "Shefali A N"]
[Black "Da Cunha, Gabriela Goes"]
[Result "0-1"]
[ECO "B40"]
[WhiteElo "1258"]
[BlackElo "1464"]
[Annotator "NA RC"]
[PlyCount "104"]
[EventDate "2018.11.04"]
[EventType "swiss"]
[EventCountry "ESP"]
[SourceTitle "playchess.com"]
[Source "ChessBase"]
[SourceQuality "1"]
[TimeControl "40/5400+30:1800+30"]

1. e4 {[%emt 0:00:00]} c5 {[%emt 0:00:00]} 2. Nf3 {[%emt 0:00:00]} e6 {[%emt 0:00:00]} 3. d3 {[%emt 0:00:08]} d5 {[%emt 0:00:06]} 4. e5 {[%emt 0:00:23]} Nc6 {[%emt 0:01:46]} 5. g3 {[%emt 0:02:26]} b6 {[%emt 0:02:53]} 6. Bg2 {[%emt 0:01:33]} Bb7 {[%emt 0:00:26]} 7. O-O {[%emt 0:01:36]} Qc7 {[%emt 0:01:38]} 8. Qe2 {[%emt 0:01:32]} Nge7 {[%emt 0:17:58]} 9. Nbd2 {[%emt 0:02:53]} Ng6 {[%emt 0:05:47]} 10. Re1 {[%emt 0:01:05]} Be7 {[%emt 0:07:12]} 11. h4 {[%emt 0:00:39]} h6 {[%emt 0:03:24]} 12. Nf1 {[%emt 0:01:22]} O-O-O {[%emt 0:01:11]} 13. N1h2 {[%emt 0:01:30]} Nf8 {[%emt 0:02:12]} 14. Bd2 {[%emt 0:02:51]} Nd7 {[%emt 0:02:10]} 15. Ng4 {[%emt 0:06:44]} Kb8 {[%emt 0:12:53]} 16. Rab1 {[%emt 0:07:15]} a6 {[%emt 0:06:35]} 17. c3 {[%emt 0:02:29]} b5 {[%emt 0:02:23]} 18. b3 {[%emt 0:03:27]} Nb6 {[%emt 0:01:49]} 19. Ra1 {[%emt 0:05:33]} c4 {[%emt 0:03:38]} 20. Be3 {[%emt 0:03:58]} cxd3 {[%emt 0:05:49]} 21. Qxd3 {[%emt 0:01:13]} Nd7 {[%emt 0:02:09]} 22. Bd4 {[%emt 0:02:29]} Rc8 {[%emt 0:04:22]} 23. Rac1 {[%emt 0:04:47]} Nxd4 {[%emt 0:01:40]} 24. cxd4 {[%emt 0:01:27]} Qxc1 {[%emt 0:01:10]} 25. Rxc1 {[%emt 0:00:33]} Rxc1+ {[%emt 0:00:10]} 26. Kh2 {[%emt 0:00:39]} Rc7 {[%emt 0:03:45]} 27. a4 {[%emt 0:02:10]} bxa4 {[%emt 0:03:38]} 28. bxa4 {[%emt 0:00:30]} Nb6 {[%emt 0:00:44]} 29. Qb3 {[%emt 0:01:35]} Nc4 {[%emt 0:00:26]} 30. Ne3 {[%emt 0:03:00]} Ka7 {[%emt 0:00:41]} 31. Nxc4 {[%emt 0:03:28]} Rxc4 {[%emt 0:00:14]} 32. a5 {[%emt 0:03:05]} Rb4 {[%emt 0:00:56]} 33. Qc2 {[%emt 0:01:20]} Rc8 {[%emt 0:00:51]} 34. Qh7 {[%emt 0:00:21]} Rb2 {[%emt 0:02:16]} 35. Qxg7 {[%emt 0:02:53]} Rxf2 {[%emt 0:00:25]} 36. Qxf7 {[%emt 0:00:44]} Rcc2 {[%emt 0:00:20]} 37. Qxe7 {[%emt 0:00:57]} Rxg2+ {[%emt 0:00:08]} 38. Kh3 {[%emt 0:00:09]} Rgf2 {[%emt 0:02:15]} 39. Ne1 {[%emt 0:01:47]} Rcd2 {[%emt 0:01:09]} 40. Qc5+ {[%emt 0:00:00]} Kb8 {[%emt 0:00:00]} 41. Kg4 {[%emt 0:02:32]} Rfe2 {[%emt 0:01:56]} 42. Nf3 {[%emt 0:01:44]} Rd3 {[%emt 0:01:25]} 43. Qd6+ {[%emt 0:04:12]} Ka7 {[%emt 0:00:37]} 44. Ng1 {[%emt 0:01:42]} Rg2 {[%emt 0:00:50]} 45. Nf3 {[%emt 0:01:26]} Re2 {[%emt 0:00:28]} 46. Qf8 {[%emt 0:00:51]} Rf2 {[%emt 0:01:10]} 47. Qc5+ {[%emt 0:01:44]} Ka8 {[%emt 0:00:18]} 48. Ne1 {[%emt 0:02:15]} Re3 {[%emt 0:02:49]} 49. Nc2 {[%emt 0:00:45]} Re4+ {[%emt 0:01:11]} 50. Kh3 {[%emt 0:01:02]} Ree2 {[%emt 0:00:38]} 51. Nb4 {[%emt 0:00:07]} h5 {[%emt 0:00:31]} 52. Nxd5 {[%emt 0:01:20]} Rh2# {[%emt 0:00:15]} 0-1

[Event "FIDE WCCC G10 2018"]
[Site "Santiago de Compostela"]
[Date "2018.11.11"]
[Round "7"]
[White "Galvez Aguirre, Valentina"]
[Black "Wu, Abbie"]
[Result "0-1"]
[ECO "B21"]
[WhiteElo "1173"]
[BlackElo "1446"]
[Annotator "NA RC"]
[PlyCount "72"]
[EventDate "2018.11.04"]
[EventType "swiss"]
[EventCountry "ESP"]
[SourceTitle "playchess.com"]
[Source "ChessBase"]
[SourceQuality "1"]
[TimeControl "40/5400+30:1800+30"]

1. e4 {[%emt 0:00:00]} c5 {[%emt 0:00:00]} 2. d4 {[%emt 0:00:00]} cxd4 {[%emt 0:00:00]} 3. c3 {[%emt 0:00:00]} dxc3 {[%emt 0:00:00]} 4. Nxc3 {[%emt 0:00:00]} Nc6 {[%emt 0:00:00]} 5. Nf3 {[%emt 0:00:10]} e6 {[%emt 0:00:00]} 6. Bc4 {[%emt 0:00:13]} Qc7 {[%emt 0:00:00]} 7. O-O {[%emt 0:00:57]} Nf6 {[%emt 0:00:08]} 8. Qe2 {[%emt 0:01:00]} Be7 {[%emt 0:02:18]} 9. Rd1 {[%emt 0:02:30]} O-O {[%emt 0:01:45]} 10. Bg5 {[%emt 0:07:19]} Ne5 {[%emt 0:13:50]} 11. Bb3 {[%emt 0:18:05]} Nxf3+ {[%emt 0:02:29]} 12. Qxf3 {[%emt 0:00:17]} Qa5 {[%emt 0:03:16]} 13. Bf4 {[%emt 0:05:09]} e5 {[%emt 0:02:48]} 14. Bg5 {[%emt 0:09:51]} h6 {[%emt 0:05:46]} 15. Bxf6 {[%emt 0:01:18]} Bxf6 {[%emt 0:00:15]} 16. Rac1 {[%emt 0:00:33]} Qd8 {[%emt 0:12:49]} 17. Nd5 {[%emt 0:02:53]} Bg5 {[%emt 0:00:48]} 18. Rc2 {[%emt 0:01:19]} d6 {[%emt 0:01:35]} 19. Nc7 {[%emt 0:04:54]} Rb8 {[%emt 0:00:19]} 20. Nb5 {[%emt 0:00:49]} Be7 {[%emt 0:03:24]} 21. Nxa7 {[%emt 0:01:44]} Bd7 {[%emt 0:02:25]} 22. a4 {[%emt 0:19:52]} Qa5 {[%emt 0:01:55]} 23. Nb5 {[%emt 0:00:33]} Bxb5 {[%emt 0:01:00]} 24. axb5 {[%emt 0:00:24]} Qxb5 {[%emt 0:00:57]} 25. Rc7 {[%emt 0:06:04]} Qe8 {[%emt 0:07:10]} 26. Rdc1 {[%emt 0:03:32]} Bg5 {[%emt 0:03:29]} 27. R1c2 {[%emt 0:01:59]} Ra8 {[%emt 0:02:23]} 28. h3 {[%emt 0:02:14]} b5 {[%emt 0:11:24]} 29. Bd5 {[%emt 0:03:43]} Ra1+ {[%emt 0:01:13]} 30. Kh2 {[%emt 0:00:13]} Bf6 31. Qb3 {[%emt 0:00:30]} Bd8 32. Rb7 {[%emt 0:00:30]} Ra5 33. Bc6 {[%emt 0:00:30]} Qe6 34. Qxe6 {[%emt 0:00:30]} fxe6 35. Bxb5 {[%emt 0:00:30]} d5 36. exd5 {[%emt 0:00:30]} exd5 0-1

[Event "FIDE WCCC G10 2018"]
[Site "Santiago de Compostela"]
[Date "2018.11.12"]
[Round "8"]
[White "Edithso, Samantha"]
[Black "Vlasova, Olesia"]
[Result "1-0"]
[ECO "B22"]
[WhiteElo "1879"]
[BlackElo "1639"]
[Annotator "NA RC"]
[PlyCount "131"]
[EventDate "2018.11.04"]
[EventType "swiss"]
[EventCountry "ESP"]
[SourceTitle "playchess.com"]
[Source "ChessBase"]
[SourceQuality "1"]
[TimeControl "40/5400+30:1800+30"]

{[%evp 8,122,31,19,32767,-21,-21,-23,-21,-17,-11,-43,-8,-10,-21,-29,6,32767,16,6,56,0,32767,8,41,39,40,0,0,-14,-20,-15,0,-51,-13,-14,0,-12,0,-26,-4,-63,0,-16,0,0,6,0,7,0,16,0,6,0,0,0,13,12,25,22,40,38,99,32767,5,0,23,10,22,18,29,24,32767,0,2,32767,120,125,107,135,177,71,214,76,185,184,191,32767,203,230,32767,129,220,195,304,32767,381,353,391,32767,32767,32767,32767,32767,32767,32767,87,32767,165,98,32767,32767,32767,32767,32767,32767,1599]} 1. e4 {[%emt 0:00:00]} c5 {[%emt 0:00:00]} 2. c3 {[%emt 0:00:41]} e6 {[%emt 0:00:00]} 3. d4 {[%emt 0:00:11]} d5 {[%emt 0:00:00]} 4. exd5 {[%emt 0:00:09]} exd5 {[%emt 0:00:07]} 5. Nf3 {[%emt 0:02:40]} Nc6 {[%emt 0:00:39]} 6. dxc5 {[%emt 0:01:35]} Bxc5 {[%emt 0:00:13]} 7. Be2 {[%emt 0:00:26] B22: Sizilianisch (Alapin 2.c3)} Nf6 {[%emt 0:00:33]} 8. O-O {[%emt 0:00:08]} O-O {[%emt 0:00:34]} (8... Ne4 9. Nbd2 O-O 10. Nb3 Bb6 11. Nbd4 Bg4 12. Be3 Qf6 13. Nc2 Bc7 14. Qxd5 Rfe8 {1-0 (23) Laxman,R (2428)-Aroshidze,L (2568) Barcelona 2012}) 9. Bg5 {[%emt 0:00:30]} Be6 {[%emt 0:09:11]} 10. Nbd2 {[%emt 0:02:46]} h6 {[%emt 0:02:07]} 11. Bh4 {[%emt 0:01:16] LiveBook: 5 Games} Be7 $146 {[%emt 0:02:05]} ({Vorgänger:} 11... Bb6 12. Nb3 g5 13. Bg3 Ne4 14. Nfd4 Qf6 {0-1 (51) Sturc,G (2009)-Holtman,T (2139) Stara Lubovna 2015}) 12. Nb3 {[%emt 0:03:01]} Qb6 {[%emt 0:21:05]} 13. Nfd4 {[%emt 0:01:21]} Ne5 {[%emt 0:09:22]} (13... Bd7 $11) 14. Kh1 {[%emt 0:02:14]} Nc4 {[%emt 0:09:19]} 15. Qc2 {[%emt 0:03:57]} Rac8 {[%emt 0:03:14]} 16. Rae1 {[%emt 0:04:16]} Rfe8 {[%emt 0:13:49]} 17. Bd3 {[%emt 0:03:12]} Bd7 {[%emt 0:05:54]} 18. Bf5 {[%emt 0:06:51]} Bxf5 {[%emt 0:01:20]} 19. Qxf5 {[%emt 0:00:45]} Rcd8 {[%emt 0:02:05]} 20. Bxf6 {[%emt 0:03:44]} Qxf6 {[%emt 0:00:23]} 21. Qc2 {[%emt 0:01:45]} Bd6 {[%emt 0:01:19]} 22. Nf5 {[%emt 0:04:39]} Bb8 {[%emt 0:01:02]} 23. Nc5 {[%emt 0:01:11]} Qc6 {[%emt 0:04:54]} 24. b4 {[%emt 0:03:53]} Qc7 {[%emt 0:00:46]} 25. g3 {[%emt 0:01:55]} b6 {[%emt 0:01:54]} 26. Na6 {[%emt 0:04:34]} Qb7 {[%emt 0:00:19]} 27. Nxb8 {[%emt 0:00:16]} Rxb8 {[%emt 0:00:20]} 28. Nd4 {[%emt 0:01:35]} Qc7 {[%emt 0:01:01]} 29. Qd3 {[%emt 0:00:56]} Nd6 {[%emt 0:02:02]} 30. Rc1 {[%emt 0:02:16]} Qc4 {[%emt 0:00:35]} 31. Qxc4 {[%emt 0:00:32]} dxc4 {[%emt 0:00:22]} 32. Kg2 {[%emt 0:00:53]} Rb7 {[%emt 0:00:47]} 33. a4 {[%emt 0:00:31]} Rbe7 {[%emt 0:01:36]} 34. Rfd1 {[%emt 0:00:29]} Ne4 {[%emt 0:00:54]} (34... a6 $14) 35. a5 {[%emt 0:03:55]} Rd7 {[%emt 0:02:27]} 36. f3 {[%emt 0:01:43]} Nf6 {[%emt 0:00:21]} 37. axb6 {[%emt 0:01:15]} axb6 {[%emt 0:00:04]} 38. Kf2 {[%emt 0:00:12]} Rde7 {[%emt 0:01:01]} 39. Re1 {[%emt 0:01:08]} Nd5 {[%emt 0:01:33]} 40. Rxe7 {[%emt 0:00:00]} Rxe7 {[%emt 0:00:00]} 41. Nb5 {[%emt 0:05:37]} Nc7 {[%emt 0:05:45]} (41... Re3 $11 {keeps the balance.}) 42. Nxc7 {[%emt 0:03:50]} Rxc7 {[%emt 0:00:06] [#]} 43. Rd1 $1 {[%emt 0:00:08]} Ra7 {[%emt 0:01:30]} (43... Kf8 $16 {was necessary.}) 44. Rd4 {[%emt 0:00:26]} (44. Rd8+ $142 Kh7 45. Ke3) 44... b5 {[%emt 0:00:11]} ({Black should play} 44... Ra2+ $14 45. Ke3 Rxh2) 45. Rd8+ {[%emt 0:01:10]} Kh7 {[%emt 0:00:14] [#]} 46. Ke3 $1 {[%emt 0:02:01]} Ra2 {[%emt 0:02:44]} 47. Rd2 {[%emt 0:00:43]} Ra1 {[%emt 0:00:35]} 48. Kd4 {[%emt 0:00:30]} Rc1 {[%emt 0:00:18]} 49. f4 {[%emt 0:00:55]} (49. Kc5 $18 {has better winning chances.}) 49... h5 {[%emt 0:00:36]} (49... g5 $16 50. fxg5 hxg5) 50. Re2 {[%emt 0:00:25]} Kg6 {[%emt 0:01:05]} 51. Re5 {[%emt 0:02:22]} Rd1+ {[%emt 0:00:15] [#]} 52. Kc5 $18 {[%emt 0:00:03]} Rd3 {[%emt 0:00:11]} 53. Kxb5 {[%emt 0:00:10]} Rxc3 {[%emt 0:00:08]} 54. Rc5 {[%emt 0:00:10]} Rc2 {[%emt 0:00:14]} 55. Rxc4 {[%emt 0:00:10]} Rxh2 {[%emt 0:00:20]} 56. Rc3 {[%emt 0:01:15]} Rb2 {[%emt 0:01:05]} 57. Kc4 {[%emt 0:00:10]} Rb1 $2 {[%emt 0:01:00] [#]} (57... Kf5 $1 $11 {and Black has nothing to worry.}) 58. b5 {[%emt 0:00:05]} (58. Rb3 $142 $1 {[%cal Rb3b1]} Rc1+ 59. Kd5) 58... Kh7 {[%emt 0:01:22]} 59. Kc5 {[%emt 0:00:07]} g6 {[%emt 0:00:15]} 60. Kc6 {[%emt 0:00:09]} Re1 {[%emt 0:02:34]} 61. b6 {[%emt 0:00:12]} Re6+ {[%emt 0:00:45]} 62. Kb7 {[%emt 0:00:06]} Kg7 {[%emt 0:00:52]} 63. Ka7 {[%emt 0:00:07]} Re1 {[%emt 0:00:15]} 64. b7 {[%emt 0:00:09]} Ra1+ {[%emt 0:00:07]} 65. Kb6 {[%emt 0:00:05]} Rb1+ {[%emt 0:03:45]} 66. Kc7 {[%emt 0:00:07]} 1-0